[Event "1st Bella Italia International 2022"]
[Site "Lignano"]
[Date "2022.08.23"]
[Round "9.13"]
[White "Urbani, Gabriel"]
[Black "Grigorian, Roudolph"]
[Result "1/2-1/2"]
[ECO "B13"]
[WhiteElo "2046"]
[BlackElo "2101"]
[Annotator "NA RC"]
[PlyCount "128"]
[EventDate "2022.08.18"]
[EventCountry "ITA"]
[SourceTitle "playchess.com"]
[Source "ChessBase"]
[SourceQuality "1"]
[TimeControl "5400+30"]

1. e4 {[%emt 0:00:03]} c6 {[%emt 0:00:01]} 2. d4 {[%emt 0:00:17]} d5 {[%emt 0:00:04]} 3. exd5 {[%emt 0:00:15]} cxd5 {[%emt 1:31:55]} 4. Bd3 {[%emt 0:00:09]} Nc6 {[%emt 0:00:00]} 5. c3 {[%emt 0:00:07]} Nf6 {[%emt 0:00:00]} 6. Bf4 {[%emt 0:01:18]} Bg4 {[%emt 0:00:00]} 7. Qb3 {[%emt 0:02:01]} Qd7 {[%emt 0:00:00]} 8. Nd2 {[%emt 0:01:12]} e6 {[%emt 0:00:00]} 9. Ngf3 {[%emt 0:03:57]} Bd6 {[%emt 0:00:00]} 10. Bxd6 {[%emt 0:00:07]} Qxd6 {[%emt 0:00:00]} 11. O-O {[%emt 0:03:24]} O-O {[%emt 0:00:00]} 12. Rfe1 {[%emt 0:01:50]} Ne7 {[%emt 0:00:00]} 13. Ne5 {[%emt 0:05:03]} Bf5 {[%emt 0:00:00]} 14. Qc2 {[%emt 0:03:57]} b5 {[%emt 0:00:00]} 15. a3 {[%emt 0:05:35]} a5 {[%emt 0:00:00]} 16. Bxf5 {[%emt 0:01:54]} Nxf5 {[%emt 0:00:00]} 17. Nb3 {[%emt 0:02:56]} b4 {[%emt 0:00:00]} 18. axb4 {[%emt 0:00:37]} axb4 {[%emt 0:00:00]} 19. Nc5 {[%emt 0:01:05]} h5 {[%emt 0:00:00]} 20. h3 {[%emt 0:05:01]} h4 {[%emt 0:00:00]} 21. Ned3 {[%emt 0:07:51]} bxc3 {[%emt 0:00:00]} 22. bxc3 {[%emt 0:00:02]} Rfc8 {[%emt 0:00:00]} 23. Qe2 {[%emt 0:13:42]} Rxa1 {[%emt 0:00:00]} 24. Rxa1 {[%emt 0:00:41]} Ne4 {[%emt 0:00:00]} 25. Nxe4 {[%emt 0:03:29]} dxe4 {[%emt 0:00:00]} 26. Qxe4 {[%emt 0:03:32]} Rxc3 {[%emt 0:00:00]} 27. Ne5 {[%emt 0:01:37]} Ra3 {[%emt 0:00:00]} 28. Rc1 {[%emt 0:32:48]} Qa6 {[%emt 0:00:00]} 29. Rb1 {[%emt 0:00:00]} Ra1 {[%emt 0:00:00]} 30. Nf3 {[%emt 0:00:00]} Rxb1+ {[%emt 0:00:00]} 31. Qxb1 {[%emt 0:00:00]} Qa8 {[%emt 0:00:00]} 32. Qb5 {[%emt 0:00:00]} Qd8 {[%emt 0:04:49]} 33. Qe5 {[%emt 0:00:00]} g5 {[%emt 0:01:54]} 34. d5 {[%emt 0:00:00]} Qxd5 {[%emt 0:00:27]} 35. Qxd5 {[%emt 0:00:00]} exd5 {[%emt 0:00:01]} 36. Nxg5 {[%emt 0:00:00]} Kg7 {[%emt 0:00:06]} 37. Nf3 {[%emt 0:00:00]} Kf6 {[%emt 0:00:07]} 38. Kf1 {[%emt 0:00:00]} Ke7 {[%emt 0:00:49]} 39. Ke2 {[%emt 0:00:00]} Kd6 {[%emt 0:00:00]} 40. Kd3 {[%emt 0:00:00]} Kc5 {[%emt 0:00:01]} 41. Ng5 {[%emt 0:00:44]} Nd6 {[%emt 0:00:59]} 42. g3 {[%emt 0:01:02]} hxg3 {[%emt 0:02:28]} 43. fxg3 {[%emt 0:00:01]} f5 {[%emt 0:00:01]} 44. Ne6+ {[%emt 0:02:25]} Kc6 {[%emt 0:03:26]} 45. Nd4+ {[%emt 0:01:40]} Kd7 {[%emt 0:00:01]} 46. Ke3 {[%emt 0:00:16]} Ke7 {[%emt 0:00:01]} 47. Kf4 {[%emt 0:00:14]} Kf6 {[%emt 0:00:12]} 48. h4 {[%emt 0:00:29]} Kg6 {[%emt 0:00:12]} 49. Ke5 {[%emt 0:00:32]} Nf7+ {[%emt 0:06:00]} 50. Kxd5 {[%emt 0:00:04]} Kf6 {[%emt 0:00:01]} 51. Ne2 {[%emt 0:00:51]} Nh6 {[%emt 0:00:57]} 52. Nf4 {[%emt 0:00:26]} Ng4 {[%emt 0:00:16]} 53. Kd6 {[%emt 0:02:03]} Nf2 {[%emt 0:00:31]} 54. Nd5+ {[%emt 0:00:11]} Kg6 {[%emt 0:00:35]} 55. Ke5 {[%emt 0:00:10]} Ne4 {[%emt 0:00:10]} 56. Kf4 {[%emt 0:00:09]} Nd6 {[%emt 0:01:23]} 57. Ne3 {[%emt 0:00:26]} Kf6 {[%emt 0:00:01]} 58. h5 {[%emt 0:00:15]} Ke6 {[%emt 0:00:08]} 59. h6 {[%emt 0:00:18]} Kf6 {[%emt 0:01:08]} 60. Nxf5 {[%emt 0:00:29]} Nf7 {[%emt 0:00:01]} 61. Kg4 {[%emt 0:02:56]} Kg6 {[%emt 0:00:01]} 62. Ne7+ {[%emt 0:00:28]} Kxh6 {[%emt 0:00:12]} 63. Kf5 {[%emt 0:00:06]} Nd6+ {[%emt 0:00:09]} 64. Ke5 {[%emt 0:00:15]} Kg5 {[%emt 0:03:23]} 1/2-1/2

[Event "1st Bella Italia International 2022"]
[Site "Lignano"]
[Date "2022.08.23"]
[Round "9.14"]
[White "Giraldi, Edoardo"]
[Black "Gelle, Istvan"]
[Result "1-0"]
[ECO "B10"]
[WhiteElo "1909"]
[BlackElo "2218"]
[Annotator "NA RC"]
[PlyCount "107"]
[EventDate "2022.08.18"]
[EventCountry "ITA"]
[SourceTitle "playchess.com"]
[Source "ChessBase"]
[SourceQuality "1"]
[TimeControl "5400+30"]

1. e4 {[%emt 0:00:07]} c6 {[%emt 0:00:05]} 2. Nf3 {[%emt 0:00:08]} d5 {[%emt 0:00:09]} 3. d3 {[%emt 0:00:07]} Bg4 {[%emt 0:01:01]} 4. h3 {[%emt 0:00:07]} Bh5 {[%emt 0:02:54]} 5. g4 {[%emt 0:00:12]} Bg6 {[%emt 0:00:10]} 6. Qe2 {[%emt 0:00:09]} dxe4 {[%emt 0:05:38]} 7. dxe4 {[%emt 0:00:31]} Nd7 {[%emt 0:00:43]} 8. Bf4 {[%emt 0:10:13]} e5 {[%emt 0:06:31]} 9. Bg3 {[%emt 0:05:40]} Qb6 {[%emt 0:09:43]} 10. c3 {[%emt 0:09:49]} f6 {[%emt 0:01:00]} 11. Bg2 {[%emt 0:03:17]} O-O-O {[%emt 0:05:02]} 12. O-O {[%emt 0:03:16]} Nc5 {[%emt 0:08:36]} 13. Nh4 {[%emt 0:05:34]} Ne7 {[%emt 0:05:08]} 14. Na3 {[%emt 0:04:21]} Bf7 {[%emt 0:11:22]} 15. Rfd1 {[%emt 0:03:50]} Ng6 {[%emt 0:04:53]} 16. Rxd8+ {[%emt 0:06:38]} Qxd8 {[%emt 0:00:18]} 17. Rd1 {[%emt 0:01:23]} Qc7 {[%emt 0:00:47]} 18. Nf5 {[%emt 0:01:52]} b5 {[%emt 0:05:49]} 19. Qd2 {[%emt 0:17:04]} Ne6 {[%emt 0:03:20]} 20. Bf1 {[%emt 0:14:37]} a6 {[%emt 0:03:33]} 21. Nc2 {[%emt 0:05:49]} Ngf4 {[%emt 0:08:49]} 22. Bxf4 {[%emt 0:00:25]} Nxf4 {[%emt 0:01:08]} 23. Nb4 {[%emt 0:00:48]} Bxb4 {[%emt 0:07:20]} 24. cxb4 {[%emt 0:00:01]} Bxa2 {[%emt 0:02:24]} 25. Ra1 {[%emt 0:01:21]} Rd8 {[%emt 0:00:15]} 26. Qe3 {[%emt 0:01:24]} g6 {[%emt 0:02:15]} 27. Rxa2 {[%emt 0:00:25]} gxf5 {[%emt 0:00:32]} 28. Rxa6 {[%emt 0:00:24]} Rd4 {[%emt 0:02:00]} 29. exf5 {[%emt 0:01:18]} Nd5 {[%emt 0:03:35]} 30. Qa3 {[%emt 0:01:34]} Qe7 {[%emt 0:00:00]} 31. Rxc6+ {[%emt 0:00:47]} Nc7 {[%emt 0:00:00]} 32. Qa7 {[%emt 0:00:55]} Rxb4 {[%emt 0:00:44]} 33. Bg2 {[%emt 0:01:15]} e4 {[%emt 0:00:20]} 34. Re6 {[%emt 0:00:34]} Qd7 {[%emt 0:00:27]} 35. Bxe4 {[%emt 0:00:29]} Nxe6 {[%emt 0:00:48]} 36. Qa8+ {[%emt 0:00:15]} Kc7 {[%emt 0:00:05]} 37. Qa5+ {[%emt 0:00:11]} Kc8 {[%emt 0:00:45]} 38. Qxb4 {[%emt 0:00:12]} Qd1+ {[%emt 0:00:45]} 39. Kh2 {[%emt 0:00:15]} Qd4 {[%emt 0:00:23]} 40. Qxd4 {[%emt 0:00:39]} Nxd4 {[%emt 0:00:03]} 41. Kg3 {[%emt 0:01:02]} b4 {[%emt 0:00:02]} 42. Kf4 {[%emt 0:00:28]} h6 {[%emt 0:00:53]} 43. Ke3 {[%emt 0:00:24]} Nb3 {[%emt 0:00:25]} 44. f4 {[%emt 0:00:19]} Kd7 {[%emt 0:00:31]} 45. h4 {[%emt 0:00:13]} Kd6 {[%emt 0:00:58]} 46. g5 {[%emt 0:00:20]} fxg5 {[%emt 0:00:25]} 47. fxg5 {[%emt 0:00:06]} hxg5 {[%emt 0:00:17]} 48. hxg5 {[%emt 0:00:01]} Ke5 {[%emt 0:00:08]} 49. f6 {[%emt 0:00:48]} Ke6 {[%emt 0:00:54]} 50. f7 {[%emt 0:00:11]} Ke7 {[%emt 0:00:37]} 51. g6 {[%emt 0:00:28]} Nc5 {[%emt 0:00:29]} 52. Bd5 {[%emt 0:00:53]} Kf8 {[%emt 0:00:19]} 53. Kd4 {[%emt 0:00:36]} Nd7 {[%emt 0:00:43]} 54. Be4 {[%emt 0:00:24]} 1-0

[Event "1st Bella Italia International 2022"]
[Site "Lignano"]
[Date "2022.08.23"]
[Round "9.15"]
[White "Colonetti, Fabio"]
[Black "Zuttioni, Federico"]
[Result "1/2-1/2"]
[ECO "E60"]
[WhiteElo "2152"]
[BlackElo "2161"]
[Annotator "NA RC"]
[PlyCount "92"]
[EventDate "2022.08.18"]
[EventCountry "ITA"]
[SourceTitle "playchess.com"]
[Source "ChessBase"]
[SourceQuality "1"]
[TimeControl "5400+30"]

1. d4 {[%emt 0:01:05]} Nf6 {[%emt 0:22:19]} 2. c4 {[%emt 0:00:05]} g6 {[%emt 0:00:15]} 3. g3 {[%emt 0:01:17]} Bg7 {[%emt 0:00:23]} 4. Bg2 {[%emt 0:00:06]} O-O {[%emt 0:00:29]} 5. Nf3 {[%emt 0:00:29]} d6 {[%emt 0:00:39]} 6. O-O {[%emt 0:00:11]} a5 {[%emt 0:03:32]} 7. Nc3 {[%emt 0:01:09]} Na6 {[%emt 0:00:56]} 8. h3 {[%emt 0:04:57]} c6 {[%emt 0:03:37]} 9. e4 {[%emt 0:01:28]} Nd7 {[%emt 0:19:39]} 10. Be3 {[%emt 0:04:47]} e5 {[%emt 0:00:46]} 11. Qe2 {[%emt 0:03:22]} Qe7 {[%emt 0:04:25]} 12. Rad1 {[%emt 0:03:00]} f5 {[%emt 0:01:19]} 13. dxe5 {[%emt 0:05:53]} dxe5 {[%emt 0:06:16]} 14. exf5 {[%emt 0:00:33]} gxf5 {[%emt 0:00:08]} 15. Rfe1 {[%emt 0:00:42]} Qf7 {[%emt 0:08:15]} 16. Rd6 {[%emt 0:16:51]} Qh5 {[%emt 0:05:17]} 17. c5 {[%emt 0:11:06]} e4 {[%emt 0:02:15]} 18. Qc4+ {[%emt 0:02:13]} Kh8 {[%emt 0:00:46]} 19. Bd4 {[%emt 0:20:01]} Qf7 {[%emt 0:02:54]} 20. Qxf7 {[%emt 0:03:05]} Rxf7 {[%emt 0:00:06]} 21. Ng5 {[%emt 0:01:09]} Re7 {[%emt 0:00:09]} 22. Bxg7+ {[%emt 0:03:10]} Kxg7 {[%emt 0:00:27]} 23. g4 {[%emt 0:03:48]} Ndxc5 {[%emt 0:01:06]} 24. gxf5 {[%emt 0:00:23]} Bxf5 {[%emt 0:00:11]} 25. Ngxe4 {[%emt 0:00:31]} Nxe4 {[%emt 0:01:08]} 26. Nxe4 {[%emt 0:00:17]} Nc5 {[%emt 0:00:52]} 27. f3 {[%emt 0:00:28]} Rae8 {[%emt 0:00:29]} 28. Kf2 {[%emt 0:00:50]} Re5 {[%emt 0:10:01]} 29. Rg1 {[%emt 0:01:33]} Bxe4 {[%emt 0:02:24]} 30. fxe4 {[%emt 0:00:12]} Rg5 {[%emt 0:01:44]} 31. Bf3 {[%emt 0:02:22]} Rxg1 {[%emt 0:00:15]} 32. Kxg1 {[%emt 0:00:04]} Re6 {[%emt 0:02:11]} 33. Rxe6 {[%emt 0:01:58]} Nxe6 {[%emt 0:00:02]} 34. b3 {[%emt 0:06:03]} Kf6 {[%emt 0:00:26]} 35. Bg4 {[%emt 0:00:46]} Nc5 {[%emt 0:00:52]} 36. Bf5 {[%emt 0:00:21]} h6 {[%emt 0:00:04]} 37. Kg2 {[%emt 0:00:15]} Ke5 {[%emt 0:01:37]} 38. Kf3 {[%emt 0:00:05]} b5 {[%emt 0:00:10]} 39. Ke3 {[%emt 0:00:49]} b4 {[%emt 0:00:22]} 40. Bg6 {[%emt 0:00:32]} Nb7 {[%emt 0:00:37]} 41. Be8 {[%emt 0:00:48]} c5 {[%emt 0:00:11]} 42. Bc6 {[%emt 0:00:41]} Nd6 {[%emt 0:00:28]} 43. Kd3 {[%emt 0:00:25]} Kf4 {[%emt 0:00:16]} 44. Bd5 {[%emt 0:00:52]} Ke5 {[%emt 0:00:24]} 45. Bc6 {[%emt 0:00:04]} Kf4 {[%emt 0:00:42]} 46. Bd5 {[%emt 0:00:24]} Ke5 {[%emt 0:00:47]} 1/2-1/2

[Event "1st Bella Italia International 2022"]
[Site "Lignano"]
[Date "2022.08.23"]
[Round "9.17"]
[White "Della Pietra, Andrea"]
[Black "Tencati, Giuseppe"]
[Result "1/2-1/2"]
[ECO "D85"]
[WhiteElo "2172"]
[BlackElo "2055"]
[Annotator "NA RC"]
[PlyCount "33"]
[EventDate "2022.08.18"]
[EventCountry "ITA"]
[SourceTitle "playchess.com"]
[Source "ChessBase"]
[SourceQuality "1"]
[TimeControl "5400+30"]

1. d4 {[%emt 0:00:05]} Nf6 {[%emt 0:00:06]} 2. c4 {[%emt 0:00:14]} g6 {[%emt 0:00:06]} 3. Nc3 {[%emt 0:00:07]} d5 {[%emt 0:00:08]} 4. cxd5 {[%emt 0:00:14]} Nxd5 {[%emt 0:00:07]} 5. Bd2 {[%emt 0:00:07]} Bg7 {[%emt 0:00:10]} 6. e4 {[%emt 0:00:07]} Nxc3 {[%emt 0:00:12]} 7. Bxc3 {[%emt 0:00:06]} O-O {[%emt 0:00:25]} 8. Bc4 {[%emt 0:01:04]} Nd7 {[%emt 0:11:51]} 9. Ne2 {[%emt 0:07:48]} c5 {[%emt 0:04:53]} 10. d5 {[%emt 0:19:02]} Ne5 {[%emt 0:00:32]} 11. b3 {[%emt 0:00:17]} f5 {[%emt 0:02:23]} 12. exf5 {[%emt 0:02:15]} Bxf5 {[%emt 0:01:46]} 13. O-O {[%emt 0:07:18]} a6 {[%emt 0:00:34]} 14. f4 {[%emt 0:11:46]} Ng4 {[%emt 0:04:44]} 15. Qd2 {[%emt 0:12:02]} b5 {[%emt 0:02:11]} 16. Bd3 {[%emt 0:08:08]} Nf6 {[%emt 0:05:22]} 17. Rad1 {[%emt 0:08:50]} 1/2-1/2

[Event "1st Bella Italia International 2022"]
[Site "Lignano"]
[Date "2022.08.23"]
[Round "9.18"]
[White "Olabe Odriozola, Eduardo"]
[Black "Bordignon, Angelo"]
[Result "1-0"]
[ECO "A08"]
[WhiteElo "1946"]
[BlackElo "2062"]
[Annotator "NA RC"]
[PlyCount "101"]
[EventDate "2022.08.18"]
[EventCountry "ITA"]
[SourceTitle "playchess.com"]
[Source "ChessBase"]
[SourceQuality "1"]
[TimeControl "5400+30"]

1. e4 {[%emt 0:00:05]} e6 {[%emt 0:00:11]} 2. d3 {[%emt 0:00:07]} d5 {[%emt 0:00:15]} 3. Nd2 {[%emt 0:00:02]} c5 {[%emt 0:00:18]} 4. Ngf3 {[%emt 0:00:45]} Nc6 {[%emt 0:00:12]} 5. g3 {[%emt 0:00:53]} g6 {[%emt 0:00:15]} 6. Bg2 {[%emt 0:01:24]} Bg7 {[%emt 0:00:04]} 7. O-O {[%emt 0:00:40]} Nge7 {[%emt 0:00:23]} 8. Re1 {[%emt 0:01:02]} O-O {[%emt 0:00:16]} 9. e5 {[%emt 0:01:55]} Qc7 {[%emt 0:01:53]} 10. Qe2 {[%emt 0:00:23]} b6 {[%emt 0:11:39]} 11. c3 {[%emt 0:02:33]} a5 {[%emt 0:00:19]} 12. h4 {[%emt 0:00:37]} h6 {[%emt 0:03:04]} 13. Nf1 {[%emt 0:00:30]} Ra7 {[%emt 0:12:14]} 14. N1h2 {[%emt 0:02:00]} Kh7 {[%emt 0:04:24]} 15. Bf4 {[%emt 0:00:34]} Qd8 {[%emt 0:01:25]} 16. Qd2 {[%emt 0:03:39]} Ng8 {[%emt 0:00:36]} 17. Ng4 {[%emt 0:05:12]} Nce7 {[%emt 0:09:09]} 18. d4 {[%emt 0:08:28]} Nf5 {[%emt 0:02:43]} 19. Kh2 {[%emt 0:01:13]} h5 {[%emt 0:01:11]} 20. Ng5+ {[%emt 0:03:22]} Kh8 {[%emt 0:00:07]} 21. Ne3 {[%emt 0:00:21]} Ngh6 {[%emt 0:02:38]} 22. Nxf5 {[%emt 0:01:53]} Nxf5 {[%emt 0:00:10]} 23. Bh3 {[%emt 0:00:10]} Re7 {[%emt 0:08:25]} 24. g4 {[%emt 0:02:10]} Nxh4 {[%emt 0:03:11]} 25. Kg3 {[%emt 0:11:53]} hxg4 {[%emt 0:05:15]} 26. Bxg4 {[%emt 0:00:41]} Nf5+ {[%emt 0:00:22]} 27. Bxf5 {[%emt 0:00:03]} exf5 {[%emt 0:00:05]} 28. f3 {[%emt 0:03:10]} Rfe8 {[%emt 0:00:25]} 29. Qh2+ {[%emt 0:02:12]} Kg8 {[%emt 0:00:04]} 30. Nh7 {[%emt 0:00:15]} f6 {[%emt 0:01:32]} 31. exf6 {[%emt 0:01:15]} Rxe1 {[%emt 0:00:30]} 32. fxg7 {[%emt 0:00:49]} Rxa1 {[%emt 0:08:57]} 33. Ng5 {[%emt 0:03:56]} Rg1+ {[%emt 0:02:14]} 34. Qxg1 {[%emt 0:00:23]} Qf6 {[%emt 0:00:13]} 35. Qh2 {[%emt 0:02:31]} Qxg7 {[%emt 0:00:06]} 36. Bd6 {[%emt 0:01:34]} cxd4 {[%emt 0:04:02]} 37. cxd4 {[%emt 0:00:01]} Qh8 {[%emt 0:00:39]} 38. Qd2 {[%emt 0:01:13]} Ba6 {[%emt 0:00:44]} 39. Nh3 {[%emt 0:02:14]} Qf6 {[%emt 0:03:17]} 40. Qf4 {[%emt 0:00:19]} g5 {[%emt 0:04:12]} 41. Nxg5 {[%emt 0:02:13]} Qg6 {[%emt 0:01:23]} 42. Be5 {[%emt 0:00:12]} Bc8 {[%emt 0:03:49]} 43. Qh4 {[%emt 0:01:13]} Rxe5 {[%emt 0:00:17]} 44. dxe5 {[%emt 0:00:01]} d4 {[%emt 0:00:17]} 45. Kf4 {[%emt 0:01:13]} b5 {[%emt 0:03:10]} 46. Qf2 {[%emt 0:03:24]} Qb6 {[%emt 0:00:15]} 47. Qe2 {[%emt 0:01:22]} Qc6 {[%emt 0:01:03]} 48. e6 {[%emt 0:01:06]} Qc1+ {[%emt 0:00:09]} 49. Kxf5 {[%emt 0:00:25]} Qb1+ {[%emt 0:03:38]} 50. Kf6 {[%emt 0:02:34]} d3 {[%emt 0:00:26]} 51. e7 {[%emt 0:01:33]} 1-0

[Event "1st Bella Italia International 2022"]
[Site "Lignano"]
[Date "2022.08.23"]
[Round "9.19"]
[White "Montorsi, Matteo"]
[Black "Olmo Vega, Diego"]
[Result "1-0"]
[ECO "C42"]
[WhiteElo "2100"]
[BlackElo "2035"]
[Annotator "NA RC"]
[PlyCount "97"]
[EventDate "2022.08.18"]
[EventCountry "ITA"]
[SourceTitle "playchess.com"]
[Source "ChessBase"]
[SourceQuality "1"]
[TimeControl "5400+30"]

1. e4 {[%emt 0:00:04]} e5 {[%emt 0:00:10]} 2. Nf3 {[%emt 0:00:06]} Nf6 {[%emt 0:00:04]} 3. Nxe5 {[%emt 0:00:26]} d6 {[%emt 0:00:03]} 4. Nf3 {[%emt 0:00:11]} Nxe4 {[%emt 0:00:05]} 5. d4 {[%emt 0:00:17]} d5 {[%emt 0:00:05]} 6. Bd3 {[%emt 0:00:13]} Be7 {[%emt 0:00:07]} 7. O-O {[%emt 0:00:12]} Nc6 {[%emt 0:00:06]} 8. c4 {[%emt 0:00:37]} Nb4 {[%emt 0:00:10]} 9. Be2 {[%emt 0:01:09]} c6 {[%emt 0:14:26]} 10. Nc3 {[%emt 0:03:35]} O-O {[%emt 0:08:03]} 11. a3 {[%emt 0:11:49]} Nxc3 {[%emt 0:00:55]} 12. bxc3 {[%emt 0:00:27]} Na6 {[%emt 0:00:26]} 13. cxd5 {[%emt 0:01:29]} cxd5 {[%emt 0:00:13]} 14. Qb3 {[%emt 0:00:22]} Nc7 {[%emt 0:05:04]} 15. Re1 {[%emt 0:02:36]} Rb8 {[%emt 0:03:43]} 16. a4 {[%emt 0:03:32]} Be6 {[%emt 0:02:44]} 17. Bd3 {[%emt 0:04:47]} Ne8 {[%emt 0:03:18]} 18. Qb1 {[%emt 0:07:53]} h6 {[%emt 0:01:53]} 19. Bf4 {[%emt 0:11:10]} Bd6 {[%emt 0:00:20]} 20. Be5 {[%emt 0:01:56]} Nf6 {[%emt 0:04:27]} 21. h3 {[%emt 0:02:49]} Qd7 {[%emt 0:04:12]} 22. Qc1 {[%emt 0:02:47]} Bxe5 {[%emt 0:04:22]} 23. dxe5 {[%emt 0:02:25]} Nh7 {[%emt 0:04:12]} 24. Nd4 {[%emt 0:02:30]} Rfc8 {[%emt 0:01:13]} 25. f4 {[%emt 0:08:31]} Qc7 {[%emt 0:02:22]} 26. Re3 {[%emt 0:04:16]} Bd7 {[%emt 0:02:44]} 27. Qd1 {[%emt 0:02:10]} Qa5 {[%emt 0:01:28]} 28. Qf3 {[%emt 0:02:26]} Rc7 {[%emt 0:04:23]} 29. Bxh7+ {[%emt 0:04:17]} Kxh7 {[%emt 0:00:12]} 30. f5 {[%emt 0:01:26]} Rbc8 {[%emt 0:02:18]} 31. Rc1 {[%emt 0:04:16]} Bxa4 {[%emt 0:12:23]} 32. f6 {[%emt 0:03:38]} g6 {[%emt 0:00:32]} 33. e6 {[%emt 0:00:37]} Be8 {[%emt 0:02:00]} 34. exf7 {[%emt 0:02:18]} Bxf7 {[%emt 0:00:21]} 35. Re7 {[%emt 0:00:35]} Kg8 {[%emt 0:06:00]} 36. Qe3 {[%emt 0:01:17]} Rxe7 {[%emt 0:02:11]} 37. Qxh6 {[%emt 0:01:41]} Be8 {[%emt 0:00:22]} 38. fxe7 {[%emt 0:00:08]} Bf7 {[%emt 0:00:17]} 39. Qe3 {[%emt 0:02:30]} Qc5 {[%emt 0:01:44]} 40. Kh1 {[%emt 0:02:43]} Re8 {[%emt 0:02:06]} 41. Re1 {[%emt 0:00:12]} a5 {[%emt 0:01:51]} 42. h4 {[%emt 0:01:52]} a4 {[%emt 0:01:40]} 43. h5 {[%emt 0:00:33]} Qb6 {[%emt 0:00:21]} 44. Qg5 {[%emt 0:01:22]} Kh7 {[%emt 0:02:15]} 45. Re3 {[%emt 0:01:26]} gxh5 {[%emt 0:01:08]} 46. Ne6 {[%emt 0:01:16]} Qb1+ {[%emt 0:02:26]} 47. Kh2 {[%emt 0:00:06]} Qg6 {[%emt 0:00:04]} 48. Nf8+ {[%emt 0:00:06]} Rxf8 {[%emt 0:00:25]} 49. exf8=N+ {[%emt 0:00:07]} 1-0

[Event "1st Bella Italia International 2022"]
[Site "Lignano"]
[Date "2022.08.23"]
[Round "9.20"]
[White "Cassi, Elisa"]
[Black "Marson, Roy"]
[Result "0-1"]
[ECO "C47"]
[WhiteElo "1922"]
[BlackElo "1959"]
[Annotator "NA RC"]
[PlyCount "132"]
[EventDate "2022.08.18"]
[EventCountry "ITA"]
[SourceTitle "playchess.com"]
[Source "ChessBase"]
[SourceQuality "1"]
[TimeControl "5400+30"]

1. e4 {[%emt 0:00:02]} e5 {[%emt 0:00:04]} 2. Nf3 {[%emt 0:00:04]} Nc6 {[%emt 0:00:10]} 3. Nc3 {[%emt 0:00:05]} Nf6 {[%emt 0:01:02]} 4. a3 {[%emt 0:00:06]} d5 {[%emt 0:06:46]} 5. Bb5 {[%emt 0:00:24]} d4 {[%emt 0:07:30]} 6. Ne2 {[%emt 0:00:04]} Nxe4 {[%emt 0:09:19]} 7. d3 {[%emt 0:00:42]} Nf6 {[%emt 0:00:24]} 8. Nxe5 {[%emt 0:00:10]} Qd5 {[%emt 0:01:43]} 9. Bxc6+ {[%emt 0:00:13]} bxc6 {[%emt 0:00:13]} 10. Nf3 {[%emt 0:00:05]} c5 {[%emt 0:07:13]} 11. O-O {[%emt 0:00:07]} Bg4 {[%emt 0:06:27]} 12. Nf4 {[%emt 0:19:48]} Qd6 {[%emt 0:02:33]} 13. Re1+ {[%emt 0:00:34]} Be7 {[%emt 0:04:10]} 14. Qe2 {[%emt 0:05:34]} Bxf3 {[%emt 0:04:22]} 15. Qxf3 {[%emt 0:01:47]} O-O {[%emt 0:00:14]} 16. b3 {[%emt 0:02:58]} c6 {[%emt 0:02:54]} 17. a4 {[%emt 0:02:57]} Bd8 {[%emt 0:01:23]} 18. Bd2 {[%emt 0:05:06]} Bc7 {[%emt 0:00:26]} 19. g3 {[%emt 0:00:28]} Nd7 {[%emt 0:05:13]} 20. Kg2 {[%emt 0:03:34]} Ne5 {[%emt 0:02:16]} 21. Qh5 {[%emt 0:00:40]} g6 {[%emt 0:08:43]} 22. Qh6 {[%emt 0:04:29]} f6 {[%emt 0:03:05]} 23. f3 {[%emt 0:02:29]} Rf7 {[%emt 0:07:10]} 24. Re4 {[%emt 0:04:55]} Rg7 {[%emt 0:05:14]} 25. Qh3 {[%emt 0:04:17]} Re8 {[%emt 0:01:14]} 26. Rae1 {[%emt 0:08:45]} Rge7 {[%emt 0:01:14]} 27. Kf2 {[%emt 0:00:58]} f5 {[%emt 0:02:28]} 28. R4e2 {[%emt 0:00:31]} g5 {[%emt 0:07:58]} 29. Nh5 {[%emt 0:09:11]} Nxf3 {[%emt 0:00:48]} 30. Rxe7 {[%emt 0:10:05]} Rxe7 {[%emt 0:00:05]} 31. Qxf5 {[%emt 0:01:30]} Nxe1 {[%emt 0:02:18]} 32. Nf6+ {[%emt 0:02:55]} Kh8 {[%emt 0:01:01]} 33. Ne4 {[%emt 0:03:36]} Rxe4 {[%emt 0:00:43]} 34. dxe4 {[%emt 0:01:30]} Nxc2 {[%emt 0:00:15]} 35. Bxg5 {[%emt 0:00:13]} Kg7 {[%emt 0:00:41]} 36. Bf4 {[%emt 0:01:53]} Qe7 {[%emt 0:00:33]} 37. Qg4+ {[%emt 0:00:19]} Kh8 {[%emt 0:00:29]} 38. Qc8+ {[%emt 0:00:44]} Bd8 {[%emt 0:00:24]} 39. h4 {[%emt 0:00:11]} Qf6 {[%emt 0:00:41]} 40. e5 {[%emt 0:00:22]} Qf8 {[%emt 0:00:11]} 41. Kg1 {[%emt 0:04:16]} Be7 {[%emt 0:00:11]} 42. Qxc6 {[%emt 0:00:17]} Ne3 {[%emt 0:01:01]} 43. e6 {[%emt 0:00:45]} Qf6 {[%emt 0:00:34]} 44. Qe8+ {[%emt 0:00:20]} Kg7 {[%emt 0:00:26]} 45. Be5 {[%emt 0:01:35]} Qxe5 {[%emt 0:00:16]} 46. Qxe7+ {[%emt 0:00:03]} Kh6 {[%emt 0:00:34]} 47. Qf8+ {[%emt 0:00:31]} Kh5 {[%emt 0:00:29]} 48. Qf3+ {[%emt 0:00:39]} Kh6 {[%emt 0:00:43]} 49. Qf8+ {[%emt 0:00:18]} Kh5 {[%emt 0:00:29]} 50. Qf3+ {[%emt 0:01:10]} Ng4 {[%emt 0:00:27]} 51. Qf7+ {[%emt 0:00:14]} Kh6 {[%emt 0:00:14]} 52. Qf8+ {[%emt 0:00:25]} Qg7 {[%emt 0:00:50]} 53. Qf4+ {[%emt 0:01:14]} Kh5 {[%emt 0:00:06]} 54. Qf5+ {[%emt 0:00:35]} Kh6 {[%emt 0:00:09]} 55. Qf4+ {[%emt 0:00:39]} Kh5 {[%emt 0:00:12]} 56. Qf7+ {[%emt 0:00:28]} Qg6 {[%emt 0:00:23]} 57. Qd7 {[%emt 0:00:38]} Ne5 {[%emt 0:01:20]} 58. Qd5 {[%emt 0:00:27]} Qxg3+ {[%emt 0:00:12]} 59. Kf1 {[%emt 0:00:12]} Qf4+ {[%emt 0:00:44]} 60. Kg1 {[%emt 0:00:24]} Kxh4 {[%emt 0:00:33]} 61. Qh1+ {[%emt 0:00:31]} Kg5 {[%emt 0:00:37]} 62. Qxh7 {[%emt 0:00:24]} Qe3+ {[%emt 0:00:22]} 63. Kg2 {[%emt 0:00:33]} Ng6 {[%emt 0:00:29]} 64. Qxa7 {[%emt 0:00:29]} Nf4+ {[%emt 0:00:25]} 65. Kf1 {[%emt 0:00:28]} Qe2+ {[%emt 0:00:04]} 66. Kg1 {[%emt 0:00:03]} Qg2# {[%emt 0:00:06]} 0-1